bitfinex/quotes_SOLUSD_20250130
["timestamp","ask_amount","ask_price","bid_price","bid_amount"]
[1738280429974,0.063,239.76,239.75,35.05426907]
[1738280430297,0.063,239.76,239.75,254.16664418]
[1738280430507,0.063,239.76,239.75,253.77520364]
[1738280431198,0.063,239.76,239.75,256.94620364]
[1738280438208,0.063,239.76,239.75,255.69522364]
[1738280438681,0.063,239.76,239.75,235.69522364]
[1738280439888,0.063,239.76,239.75,222.28337511]
[1738280440301,0.063,239.76,239.75,218.11237511]
[1738280440810,0.063,239.76,239.71,141.1715]
[1738280441115,0.063,239.76,239.72,0.39211652]
[1738280450127,0.063,239.76,239.7,17.58364853]
[1738280450426,0.063,239.76,239.71,0.39192615]
[1738280450813,0.063,239.76,239.73,20.0]
[1738280451009,0.063,239.76,239.74,0.39183573]
[1738280451826,0.063,239.76,239.75,4.171]
[1738280461029,0.063,239.76,239.75,235.69522364]
[1738280461237,0.063,239.76,239.75,236.94620364]
[1738280461406,0.0001,239.76,239.75,236.94620364]
[1738280463327,0.0001,239.76,239.75,235.94620364]
[1738280463935,0.063,239.82,239.8,13.41184853]
[1738280464126,0.063,239.82,239.81,0.39127423]
[1738280464630,0.063,239.82,239.81,13.80312276]
[1738280465029,0.063,239.82,239.81,150.80312276]
[1738280465217,0.063,239.82,239.81,150.41184853]
[1738280465930,0.063,239.82,239.81,231.64971364]
[1738280466230,0.063,239.82,239.81,235.81961364]
[1738280467129,0.063,239.82,239.81,235.94510364]
[1738280467317,0.063,239.83,239.82,14.53733853]
[1738280467631,0.063,239.83,239.82,13.92836229]
[1738280468531,0.0001,239.88,239.86,2.5031]
[1738280468850,0.063,239.92,239.9,20.25098]
[1738280469040,0.063,239.92,239.9,20.64153663]
[1738280469700,0.063,239.92,239.9,24.80993663]
[1738280470440,0.0001,239.91,239.9,39.22178516]
[1738280471445,0.0001,239.91,239.9,38.22178516]
[1738280472946,0.0001,239.91,239.9,39.22178516]
[1738280473420,0.0001,239.91,239.9,257.33416027]
[1738280473622,0.0001,239.91,239.9,256.94360364]
[1738280477844,0.0001,239.91,239.9,255.94360364]
[1738280478038,0.0001,239.91,239.9,255.81811364]
[1738280478243,0.0001,239.91,239.9,255.94360364]
[1738280488655,0.0001,239.91,239.9,255.97360364]
[1738280495954,0.0001,239.91,239.9,242.31077511]
[1738280496154,0.0001,239.91,239.9,222.31077511]
[1738280496463,0.0001,239.91,239.9,81.14237511]
[1738280496636,0.0001,239.91,239.9,81.53336742]
[1738280496845,0.0001,239.91,239.9,81.14237511]
[1738280498165,0.0001,239.91,239.9,0.03]
[1738280508675,0.0001,239.91,239.9,0.42115965]
[1738280509581,0.0001,239.91,239.9,24.58955965]
[1738280509872,0.0001,239.91,239.9,256.36476329]
[1738280510067,0.0001,239.91,239.9,257.61940364]
[1738280515280,0.0001,239.92,239.9,244.08206511]
[1738280515582,0.0001,239.92,239.91,0.39054146]
[1738280515766,0.0001,239.92,239.91,232.1657451]
[1738280516071,0.0001,239.92,239.91,231.77520364]
[1738280517678,0.0001,239.92,239.91,235.94340364]
[1738280520783,0.0001,239.92,239.91,222.28057511]
[1738280521158,0.0001,239.92,239.91,81.11237511]
[1738280522789,0.0001,239.92,239.9,0.03]
[1738280524894,8.77237258,239.92,239.9,0.03]
[1738280525474,0.0001,239.92,239.9,0.03]
[1738280536094,0.0001,239.92,239.9,0.42102532]
[1738280536902,0.0001,239.92,239.9,4.58942532]
[1738280537198,0.0001,239.92,239.9,0.03]
[1738280543210,7.99077455,239.92,239.9,0.03]
[1738280544191,12.15887455,239.92,239.9,0.03]
[1738280545308,4.1682,239.92,239.9,0.03]
[1738280549110,0.0001,239.92,239.9,0.03]
[1738280566927,15.35564887,239.92,239.9,0.03]
[1738280567228,16.87114887,239.92,239.9,0.03]
[1738280568112,4.1682,239.91,239.9,0.03]
[1738280572417,17.58004853,239.91,239.9,0.0001]
[1738280576723,4.1682,239.91,239.9,0.0001]
[1738280577106,0.78167432,239.92,239.9,0.0001]
[1738280577312,0.0001,239.92,239.9,0.0001]
[1738280583417,0.78161861,239.91,239.9,0.0001]
[1738280584636,4.94981861,239.91,239.9,0.0001]
[1738280584932,0.0001,239.92,239.9,0.0001]
[1738280585320,4.94969213,239.92,239.9,0.0001]
[1738280588104,12.94036668,239.92,239.9,0.0001]
[1738280597951,17.58004853,239.91,239.9,0.0001]
[1738280599824,4.1682,239.91,239.9,0.0001]
[1738280601659,8.77236668,239.92,239.9,0.0001]
[1738280601957,0.78169213,239.92,239.9,0.0001]
[1738280603532,4.94979213,239.92,239.9,0.0001]
[1738280607854,0.0001,239.92,239.9,0.39128347]
[1738280608458,0.0001,239.92,239.9,0.0001]
[1738280611857,0.78162315,239.92,239.9,0.0001]
[1738280612040,8.7722977,239.92,239.9,0.0001]
[1738280612756,4.1682,239.91,239.9,0.0001]
[1738280617254,17.58004853,239.91,239.9,0.0001]
[1738280618472,4.1682,239.91,239.9,0.0001]
[1738280620367,17.58004853,239.91,239.9,0.0001]
[1738280622476,4.1682,239.91,239.9,0.0001]
[1738280638181,4.2312,239.91,239.9,0.0001]
[1738280644755,0.063,239.91,239.9,0.0001]
[1738280656992,4.2312,239.91,239.9,0.0001]
[1738280672597,0.063,239.91,239.9,0.0001]
[1738280679890,0.063,239.91,239.9,81.11247511]
[1738280690321,0.063,239.91,239.9,0.0001]
[1738280701318,4.2312,239.91,239.9,0.0001]
[1738280709521,17.64304853,239.91,239.9,0.0001]
[1738280710352,49.60574673,239.91,239.79,81.11237511]
[1738280710531,7.99067455,239.8,239.77,1.5987]
[1738280710736,0.78203231,239.79,239.77,1.5987]
[1738280710936,4.95233231,239.79,239.77,1.5987]
[1738280711643,7.99067455,239.78,239.75,0.03]
[1738280711852,0.78210568,239.77,239.75,0.03]
[1738280712337,7.99067455,239.76,239.75,0.03]
[1738280712950,12.94365574,239.76,239.75,0.03]
[1738280713856,12.16147455,239.76,239.75,0.03]
[1738280714156,12.16147455,239.76,239.72,0.03]
[1738280714326,7.99067455,239.73,239.67,0.03]
[1738280714661,7.99067455,239.7,239.67,0.03]
[1738280714839,0.78239684,239.69,239.67,0.03]
[1738280715023,7.99067455,239.7,239.67,0.03]
[1738280715024,7.99067455,239.73,239.67,0.03]
[1738280715229,8.7730722,239.75,239.67,4.2023]
[1738280715425,8.7730722,239.75,239.68,0.39249137]
[1738280716152,95.05108301,239.82,239.68,24.56459137]
[1738280716153,4.1706,239.78,239.68,24.56459137]
[1738280716330,4.1698,239.82,239.69,13.53733853]
[1738280716534,4.1698,239.82,239.71,13.41184853]
[1738280716741,4.1698,239.82,239.72,0.39196196]
[1738280716940,7.99067455,239.81,239.72,0.39196196]
[1738280717332,7.99067455,239.83,239.73,4.1713]
[1738280717534,0.78193902,239.82,239.74,0.39198467]
[1738280717738,7.99067455,239.79,239.72,137.0]
[1738280717959,0.78207996,239.78,239.72,137.0]
[1738280718148,0.78207996,239.78,239.68,85.28447511]
[1738280718348,0.78207996,239.78,239.69,0.39236107]
[1738280718540,7.99067455,239.79,239.69,0.39236107]
[1738280719063,4.1706,239.77,239.69,0.39236107]
[1738280719359,4.1706,239.77,239.69,81.50473618]
[1738280719554,12.16127455,239.77,239.69,81.50473618]
[1738280720660,7.99067455,239.79,239.69,81.50473618]
[1738280720962,4.95246999,239.78,239.72,0.03]
[1738280722864,4.1702,239.8,239.72,0.03]
[1738280723167,4.1702,239.8,239.72,81.14237511]
[1738280723358,4.1702,239.8,239.73,0.39202033]
[1738280724863,4.1702,239.8,239.73,4.56332033]
[1738280725662,4.1699,239.82,239.73,4.56332033]
[1738280725859,4.1696,239.84,239.73,222.67569544]
[1738280726061,4.1696,239.84,239.73,222.28367511]
[1738280726273,4.1696,239.84,239.74,0.39178128]
[1738280726274,4.95143732,239.84,239.74,0.39178128]
[1738280726569,7.99067455,239.83,239.74,0.39178128]
[1738280727070,4.1697,239.82,239.74,4.56288128]
[1738280727242,4.95160261,239.82,239.74,4.56288128]
[1738280728969,4.1697,239.82,239.74,4.56288128]
[1738280729164,7.99067455,239.83,239.74,4.56288128]
[1738280730056,12.16027455,239.83,239.74,4.56288128]
[1738280730872,12.16027455,239.83,239.74,6.08358128]
[1738280731870,12.16027455,239.83,239.74,87.19595639]
[1738280732168,12.16027455,239.83,239.74,86.80417511]
[1738280732376,0.78193083,239.82,239.74,82.63307511]
[1738280732669,7.99067455,239.81,239.74,83.02517189]
[1738280732873,7.99067455,239.79,239.74,82.63307511]
[1738280733876,0.78206293,239.78,239.74,82.63307511]
[1738280734057,7.99067455,239.77,239.74,81.11237511]
[1738280734663,4.1708,239.76,239.74,81.11237511]
[1738280737081,7.99067455,239.75,239.72,0.03]
[1738280737288,0.78219116,239.74,239.72,0.03]
[1738280738778,7.99067455,239.73,239.72,0.03]
[1738280738962,12.94421698,239.73,239.72,0.03]
[1738280749903,26.35606551,239.73,239.72,0.03]
[1738280755307,26.41906551,239.73,239.72,0.03]
[1738280755478,20.0,239.7,239.67,0.03]
[1738280755679,7.99067455,239.68,239.67,0.03]
[1738280759775,12.16287455,239.68,239.67,0.03]
[1738280760601,12.9446473,239.72,239.67,0.03]
[1738280760986,4.95397275,239.72,239.67,0.03]
[1738280761299,12.9446473,239.72,239.67,0.03]
[1738280763107,7.99067455,239.72,239.67,0.03]
[1738280763280,0.063,239.73,239.67,0.03]
[1738280763475,0.063,239.73,239.67,81.53487442]
[1738280763700,0.063,239.73,239.68,1.5641]
[1738280764008,0.063,239.73,239.69,4.56422968]
[1738280764185,0.063,239.73,239.69,222.67660479]
[1738280764390,0.063,239.73,239.7,0.39207658]
[1738280767424,0.063,239.73,239.7,4.56387658]
[1738280767626,0.063,239.73,239.68,1.5641]
[1738280768329,0.063,239.73,239.68,6.12879873]
[1738280770304,0.063,239.73,239.68,1.95659873]
[1738280770514,0.063,239.73,239.68,6.12869873]
[1738280771548,0.063,239.73,239.68,1.95659873]
[1738280771835,0.78219516,239.72,239.68,1.5641]
[1738280773413,0.84517946,239.73,239.68,1.5641]
[1738280773613,5.01647946,239.73,239.68,1.5641]
[1738280781054,5.01647946,239.73,239.68,1.5941]
[1738280781749,4.2343,239.73,239.68,1.5941]
[1738280781955,4.2343,239.73,239.68,1.98655962]
[1738280781956,0.063,239.73,239.68,1.98655962]
[1738280782449,0.063,239.73,239.68,6.15865962]
[1738280785368,0.063,239.73,239.68,87.27103473]
[1738280785530,0.063,239.73,239.68,86.87857511]
[1738280785733,0.063,239.73,239.68,82.70647511]
[1738280786252,4.2344,239.73,239.68,82.70647511]
[1738280788658,0.063,239.73,239.68,82.70647511]
[1738280788960,0.063,239.73,239.69,0.39241514]
[1738280790774,0.063,239.73,239.7,4.1718]
[1738280790984,0.063,239.73,239.69,0.39241514]
[1738280791281,0.063,239.73,239.69,81.50479025]
[1738280792082,5.01656269,239.73,239.69,81.11237511]
[1738280795183,5.01656269,239.73,239.68,1.5941]
[1738280795398,7.99067455,239.7,239.68,0.03]
[1738280795988,7.99067455,239.72,239.68,0.03]
[1738280796195,0.78229781,239.71,239.68,0.03]
[1738280796698,7.99067455,239.72,239.68,0.03]
[1738280796900,4.2344,239.73,239.68,0.03]
[1738280797283,0.063,239.73,239.68,0.03]
[1738280797581,0.84516881,239.73,239.68,0.03]
[1738280798803,5.01646881,239.73,239.68,0.03]
[1738280799298,0.063,239.73,239.68,0.03]
[1738280799676,0.063,239.73,239.69,0.3924527]
[1738280799880,0.063,239.73,239.7,1.582]
[1738280800068,0.063,239.73,239.71,0.39225576]
[1738280800407,0.063,239.73,239.7,1.97425423]
[1738280801368,0.063,239.73,239.7,1.582]
[1738280815046,0.063,239.73,239.7,82.69437511]
[1738280816438,0.063,239.73,239.7,82.72437511]
[1738280816953,7.99067455,239.72,239.7,81.14237511]
[1738280817412,7.99067455,239.72,239.7,0.03]
[1738280817618,0.78229845,239.71,239.7,0.03]
[1738280820030,4.95399845,239.71,239.7,0.03]
[1738280825350,18.36584698,239.71,239.7,0.03]
[1738280829669,21.40252308,239.69,239.68,0.03]
[1738280829834,42.18503119,239.69,239.68,0.03]
[1738280831159,46.35703119,239.69,239.68,0.03]
[1738280831854,26.35703119,239.69,239.68,0.03]
[1738280832042,27.38190886,239.69,239.68,0.03]
[1738280832655,94.01184853,239.68,239.67,0.03]
[1738280832861,94.01184853,239.68,239.67,0.0001]
[1738280833961,98.18404853,239.68,239.67,0.0001]
[1738280835974,17.58404853,239.68,239.67,0.0001]
[1738280836279,18.36667495,239.68,239.67,0.0001]
[1738280839764,24.95482642,239.68,239.67,0.0001]
[1738280839950,4.95482642,239.68,239.67,0.0001]
[1738280840654,5.01782642,239.68,239.67,0.0001]
[1738280840979,18.42967495,239.68,239.67,0.0001]
[1738280846977,5.01782642,239.68,239.67,0.0001]
[1738280847185,0.063,239.68,239.67,0.0001]
[1738280849604,4.2352,239.68,239.67,0.0001]
[1738280849906,5.01756743,239.68,239.67,0.0001]
[1738280861894,0.063,239.68,239.67,0.0001]
[1738280865005,0.063,239.68,239.67,2.03475782]
[1738280865384,0.063,239.68,239.67,83.14713293]
[1738280866113,0.063,239.68,239.67,82.75447511]
[1738280868504,0.063,239.68,239.67,1.6421]
[1738280878195,0.063,239.68,239.67,2.03470796]
[1738280878591,0.063,239.68,239.67,6.20710796]
[1738280879304,0.063,239.68,239.67,9.63480751]
[1738280879513,0.063,239.68,239.67,7.79059884]
[1738280880019,0.063,239.68,239.67,6.99248552]
[1738280880222,0.063,239.68,239.67,6.99122635]
[1738280880416,0.063,239.68,239.67,88.10360146]
[1738280880619,0.063,239.68,239.67,87.30540661]
[1738280881323,0.063,239.68,239.67,83.13189929]
[1738280881712,0.063,239.68,239.67,83.13081812]
[1738280881930,0.063,239.68,239.67,83.12203978]
[1738280882222,0.063,239.68,239.67,83.11346658]
[1738280882604,0.063,239.68,239.67,83.10509334]
[1738280882804,0.063,239.68,239.67,83.09691544]
[1738280883525,0.063,239.68,239.67,83.48947627]
[1738280883828,0.063,239.68,239.67,87.66187627]
[1738280884131,0.063,239.68,239.67,87.26931544]
[1738280885328,0.78204665,239.78,239.67,87.26931544]
[1738280885534,0.78204665,239.78,239.68,0.39229859]
[1738280886427,7.99067455,239.77,239.69,0.34241421]
[1738280886611,0.78214525,239.76,239.69,0.33442586]
[1738280886803,0.78214525,239.76,239.7,0.39237877]
[1738280887733,7.99067455,239.77,239.7,0.39237877]
[1738280887936,7.99067455,239.77,239.69,0.39234128]
[1738280888432,7.99067455,239.77,239.69,4.56434128]
[1738280889240,7.99067455,239.77,239.69,0.39234128]
[1738280889436,0.78210245,239.76,239.67,83.14692339]
[1738280890325,0.78210245,239.76,239.68,0.28349696]
[1738280890524,0.78210245,239.76,239.68,0.27688434]
[1738280890725,4.95290245,239.76,239.69,0.27041421]
[1738280891128,4.95290245,239.76,239.68,0.26411736]
[1738280891330,4.95290245,239.76,239.68,0.25795661]
[1738280891637,4.95290245,239.76,239.69,0.25794585]
[1738280891838,7.99067455,239.75,239.68,0.25193961]
[1738280892141,7.99067455,239.73,239.68,0.24606265]
[1738280892445,0.78227212,239.72,239.69,0.24031307]
[1738280892636,0.78227212,239.72,239.68,0.23471719]
[1738280892822,0.78227212,239.72,239.68,0.2292417]
[1738280893138,7.99067455,239.73,239.69,0.22923214]
[1738280893341,0.78223731,239.73,239.68,0.22389424]
[1738280893526,0.78223731,239.73,239.68,0.2186712]
[1738280893726,0.78223731,239.73,239.69,0.21356111]
[1738280897444,0.78223731,239.73,239.67,1.6421]
[1738280897826,0.84523731,239.73,239.67,1.6421]
[1738280898829,0.84523731,239.73,239.67,0.0001]
[1738280899028,13.00731186,239.73,239.67,0.0001]
[1738280900138,13.41184853,239.72,239.67,0.0001]
[1738280900337,7.99067455,239.69,239.67,0.0001]
[1738280900648,0.78244262,239.68,239.67,0.0001]
[1738280901350,4.95464262,239.68,239.67,0.0001]
[1738280906035,18.36649115,239.68,239.67,0.0001]
[1738280906936,13.41184853,239.67,239.66,0.0001]
[1738280907249,13.41184853,239.63,239.6,0.03]
[1738280907454,12.16407455,239.61,239.6,0.03]
[1738280913568,25.57592308,239.61,239.6,0.03]
[1738280913941,26.35867657,239.61,239.6,0.03]
[1738280916971,26.35867657,239.61,239.6,0.0001]
[1738280917169,27.35867657,239.61,239.6,0.0001]
[1738280918246,28.39861264,239.61,239.6,0.0001]
[1738280918677,1.0,239.59,239.46,87.75727511]
[1738280918860,7.99067455,239.51,239.46,81.14237511]
[1738280919060,12.16577455,239.51,239.46,0.03]
[1738280919284,0.78295863,239.5,239.46,0.03]
[1738280920358,7.99067455,239.49,239.46,0.03]
[1738280920547,0.78306556,239.48,239.46,0.03]
[1738280920969,7.99067455,239.49,239.46,0.03]
[1738280921174,0.78304059,239.5,239.46,0.03]
[1738280921369,7.99067455,239.53,239.46,0.03]
[1738280921543,8.77354772,239.53,239.46,0.03]
[1738280923290,12.94844772,239.53,239.46,0.03]
[1738280925180,7.99067455,239.51,239.46,0.03]
[1738280925383,8.77364287,239.51,239.46,0.03]
[1738280926486,7.99067455,239.51,239.46,0.03]
[1738280926903,7.99067455,239.53,239.46,0.42399037]
[1738280927080,12.94811642,239.55,239.46,4.59999037]
[1738280927287,8.77361642,239.55,239.46,4.59999037]
[1738280927504,12.94811642,239.55,239.46,85.71236548]
[1738280928209,7.99067455,239.53,239.46,81.14237511]
[1738280928392,0.78293227,239.52,239.46,81.14237511]
[1738280929203,4.95803227,239.52,239.46,81.14237511]
[1738280931007,4.95803227,239.52,239.46,0.03]
[1738280931190,7.99067455,239.51,239.46,0.03]
[1738280931380,12.16587455,239.51,239.46,0.03]
[1738280932695,7.99067455,239.51,239.46,0.03]
[1738280933005,7.99067455,239.55,239.46,0.42394529]
[1738280933226,0.78283836,239.54,239.46,0.42394529]
[1738280934504,0.78283836,239.54,239.46,4.59984529]
[1738280934679,28.7735048,239.55,239.46,4.59984529]
[1738280935682,0.78282799,239.54,239.46,4.59984529]
[1738280936923,32.16517455,239.55,239.46,85.7122204]
[1738280937914,0.78282869,239.54,239.46,85.7122204]
[1738280938215,32.16517455,239.55,239.46,85.7122204]
[1738280938886,0.78282828,239.54,239.46,85.7122204]
[1738280939088,32.16517455,239.55,239.46,85.7122204]
[1738280939423,12.16517455,239.55,239.46,85.7122204]
[1738280941512,0.78283928,239.54,239.46,85.7122204]
[1738280944436,0.78284199,239.58,239.46,85.7122204]
[1738280944639,0.063,239.6,239.5,20.0]
[1738280944799,0.063,239.6,239.52,1.5849]
[1738280944997,0.063,239.6,239.53,0.39329007]
[1738280946899,0.063,239.6,239.54,4.1746]
[1738280947238,0.063,239.6,239.55,6.81854843]
[1738280947403,0.063,239.6,239.58,20.0]
[1738280947596,0.063,239.6,239.59,0.39291402]
[1738280948733,0.063,239.6,239.59,20.39291402]
[1738280948933,0.063,239.6,239.59,24.56661402]
[1738280953233,0.063,239.6,239.59,4.56661402]
[1738280953528,0.063,239.6,239.59,24.56661402]
[1738280955130,0.063,239.6,239.59,4.56661402]
[1738280958834,0.063,239.6,239.57,4.56693524]
[1738280963628,0.063,239.6,239.57,85.67931035]
[1738280966138,0.063,239.63,239.6,20.0]
[1738280966314,0.063,239.63,239.61,0.39254104]
[1738280967427,0.063,239.63,239.62,4.1732]
[1738280969534,0.063,239.63,239.62,222.28557511]
[1738280978442,0.063,239.63,239.62,218.11237511]
[1738280979144,0.063,239.63,239.58,4.1739]
[1738280979452,7.99067455,239.62,239.57,0.03]
[1738280979744,0.063,239.63,239.57,4.2041]
[1738280980041,0.063,239.63,239.58,0.39308198]
[1738280980239,0.063,239.63,239.57,4.59724325]
[1738280980620,0.063,239.63,239.57,0.03]
[1738280980821,0.063,239.63,239.6,0.03]
[1738280983249,0.84558406,239.63,239.6,0.03]
[1738280984517,5.01868406,239.63,239.6,0.03]
[1738280985436,0.84558406,239.63,239.6,0.03]
[1738280985621,0.063,239.63,239.6,0.03]
[1738280988726,4.2361,239.63,239.6,0.03]
[1738280991335,0.063,239.63,239.6,0.03]
[1738280997935,0.78253424,239.62,239.6,0.03]
[1738280998544,4.2361,239.63,239.6,0.03]
[1738280998545,0.84558875,239.63,239.6,0.03]
[1738280999041,0.063,239.63,239.6,0.03]
[1738281010962,0.063,239.63,239.6,0.4230331]
[1738281012065,0.063,239.63,239.6,4.2035]
[1738281016557,0.063,239.63,239.61,0.39297008]
[1738281018186,0.063,239.63,239.61,218.50534519]
[1738281018377,0.063,239.63,239.61,218.11237511]
[1738281018779,0.063,239.63,239.62,4.1732]
[1738281019270,0.063,239.63,239.62,235.69742364]
[1738281023779,0.063,239.63,239.62,225.04557511]
[1738281025480,0.063,239.63,239.62,85.28557511]
[1738281025664,0.063,239.63,239.6,0.42277978]
[1738281025981,0.063,239.63,239.6,0.03]
[1738281026875,0.063,239.63,239.61,0.39301673]
[1738281029082,0.063,239.63,239.61,81.50539184]
[1738281029980,0.063,239.63,239.6,0.03]
[1738281030184,4.2361,239.63,239.6,0.03]
[1738281030363,8.77328336,239.62,239.6,0.03]
[1738281030968,13.41184853,239.61,239.6,0.03]
[1738281031281,19.90164853,239.61,239.6,0.03]
[1738281031972,24.07504853,239.61,239.6,0.03]
[1738281033486,25.63174853,239.61,239.6,0.03]
[1738281035894,17.58524853,239.61,239.6,0.03]
[1738281036100,4.1734,239.61,239.6,0.03]
[1738281036390,0.78260881,239.62,239.6,0.03]
[1738281036566,5.01866838,239.63,239.6,0.03]
[1738281043866,0.063,239.63,239.6,0.03]
[1738281044068,0.063,239.63,239.6,81.14237511]
[1738281044272,0.063,239.63,239.61,0.39276406]
[1738281048204,0.063,239.63,239.6,81.14237511]
[1738281049899,0.063,239.63,239.6,0.03]
[1738281055879,0.063,239.63,239.6,85.31577511]
[1738281056080,0.063,239.63,239.61,0.39285298]
[1738281058298,0.063,239.63,239.6,81.14237511]
[1738281059020,4.2361,239.63,239.6,81.14237511]
[1738281059588,0.78256729,239.62,239.6,81.14237511]
[1738281059800,0.78256729,239.62,239.6,0.03]
[1738281060405,25.57592308,239.61,239.6,0.03]
[1738281060783,26.35873823,239.61,239.6,0.03]
[1738281065798,27.97973823,239.61,239.6,0.03]
[1738281066003,34.26893823,239.61,239.6,0.03]
[1738281066913,35.28841956,239.61,239.6,0.03]
[1738281067114,20.0,239.58,239.57,0.03]
[1738281067298,42.18544831,239.58,239.57,0.03]
[1738281068614,46.35934831,239.58,239.57,0.03]
[1738281070331,47.35934831,239.58,239.57,0.03]
[1738281071292,20.0,239.54,239.46,0.03]
[1738281071495,57.79424831,239.58,239.46,0.03]
[1738281071496,7.99067455,239.48,239.46,0.03]
[1738281071702,0.78314997,239.47,239.46,0.03]
[1738281071906,14.1949985,239.47,239.46,0.03]
[1738281073207,18.3707985,239.47,239.46,0.03]
[1738281073718,19.3707985,239.47,239.46,0.03]
[1738281073900,41.40252308,239.44,239.43,0.03]
[1738281074100,42.18596983,239.44,239.43,0.03]
[1738281074518,0.78344675,239.44,239.43,0.03]
[1738281074722,20.78344675,239.44,239.43,0.03]
[1738281076323,20.0,239.44,239.43,0.03]
[1738281076700,0.78313897,239.47,239.43,0.03]
[1738281077001,0.78306434,239.49,239.43,0.03]
[1738281077213,0.78306205,239.5,239.43,0.03]
[1738281077615,20.0,239.49,239.43,0.03]
[1738281077920,0.783019,239.48,239.43,0.03]
[1738281079101,8.77369355,239.48,239.43,0.03]
[1738281079323,12.94949355,239.48,239.43,0.03]
[1738281080729,7.99067455,239.46,239.43,0.03]
[1738281080912,0.78320236,239.45,239.43,0.03]
[1738281084127,0.78320236,239.45,239.36,0.03]
[1738281084128,20.0,239.42,239.36,0.03]
[1738281084310,7.99067455,239.38,239.33,0.03]
[1738281084500,7.99067455,239.36,239.33,0.03]
[1738281086131,7.99067455,239.38,239.33,0.03]
[1738281086331,7.99067455,239.34,239.23,1.6426]
[1738281086630,7.99067455,239.3,239.23,1.6426]
[1738281086809,0.78370112,239.29,239.23,1.6426]
[1738281088230,7.99067455,239.28,239.23,1.6426]
[1738281088429,8.77440964,239.28,239.23,1.6426]
[1738281092107,13.41184853,239.27,239.2,0.3952438]
[1738281092313,7.99067455,239.28,239.2,4.5757438]
[1738281092715,7.99067455,239.32,239.2,4.5757438]
[1738281092910,20.0,239.32,239.2,4.5757438]
[1738281093116,20.0,239.32,239.2,15.0272438]
[1738281093338,0.78360973,239.31,239.2,15.0272438]
[1738281093537,8.77428428,239.31,239.2,15.0272438]
[1738281096539,7.99067455,239.3,239.2,15.0272438]
[1738281096937,7.99067455,239.27,239.2,4.5757438]
[1738281097127,0.78376122,239.26,239.2,4.5757438]
[1738281097621,8.77443577,239.26,239.2,4.5757438]
[1738281097820,8.77443577,239.26,239.2,4.2105]
[1738281099047,7.99067455,239.26,239.2,4.2105]
[1738281099345,7.99067455,239.28,239.21,0.39557939]
[1738281100418,7.99067455,239.28,239.22,4.1802]
[1738281100828,8.77435045,239.3,239.23,0.39546267]
[1738281101151,7.99067455,239.31,239.23,0.39546267]
[1738281101923,0.84661748,239.33,239.23,0.39546267]
[1738281102143,0.063,239.33,239.24,1.6272]
[1738281102337,0.063,239.33,239.25,0.39496479]
[1738281102646,0.063,239.33,239.26,4.1795]
[1738281102947,0.063,239.33,239.27,0.39496392]
[1738281104452,0.063,239.33,239.28,10.2265]
[1738281104626,0.063,239.33,239.29,0.39474107]
[1738281105135,0.063,239.33,239.3,1.5244]
[1738281105338,0.063,239.33,239.31,0.39479632]
[1738281105740,0.063,239.33,239.3,1.5244]
[1738281110146,0.063,239.33,239.25,4.1796]
[1738281110339,0.063,239.33,239.26,0.39516502]
[1738281112259,0.063,239.33,239.27,4.1793]
[1738281112438,0.063,239.33,239.27,4.57438665]
[1738281113557,0.063,239.33,239.28,20.0]
[1738281113862,0.063,239.33,239.31,20.0]
[1738281114058,0.063,239.33,239.32,0.39462109]
[1738281114232,0.063,239.33,239.32,4.57312109]
[1738281115245,0.063,239.33,239.29,0.3947308]
[1738281115742,0.063,239.33,239.29,4.5736308]
[1738281117259,0.063,239.33,239.29,0.3947308]
[1738281118366,0.063,239.33,239.29,0.39501616]
[1738281118537,0.063,239.33,239.28,0.39501261]
[1738281119972,0.063,239.33,239.28,4.57401261]
[1738281120643,0.063,239.33,239.28,0.39501261]